[Event "*** Titled Tuesday Blitz"]
[Site "Chess.com"]
[Date "2020.03.03"]
[Round "1"]
[White "Gabix_94"]
[Black "Babas"]
[Result "1-0"]
[WhiteElo "2711"]
[BlackElo "2365"]
[TimeControl "180+1"]
[EndTime "13:07:25 PST"]
[Termination "Gabix_94 won by checkmate"]

1. Nf3 {[%clk 0:02:58.3]} 1... d5 {[%clk 0:02:59.1]} 2. c4 {[%clk 0:02:57.4]}
2... c6 {[%clk 0:02:57.4]} 3. e3 {[%clk 0:02:56.3]} 3... Nf6 {[%clk 0:02:57.5]}
4. b3 {[%clk 0:02:56.1]} 4... a6 {[%clk 0:02:57.7]} 5. Bb2 {[%clk 0:02:56.5]}
5... b5 {[%clk 0:02:57.9]} 6. Be2 {[%clk 0:02:54.1]} 6... Bf5 {[%clk 0:02:55.2]}
7. O-O {[%clk 0:02:52.8]} 7... e6 {[%clk 0:02:54]} 8. Nc3 {[%clk 0:02:52.2]}
8... Nbd7 {[%clk 0:02:52.5]} 9. Nd4 {[%clk 0:02:50.9]} 9... Qb6 {[%clk
0:02:39.3]} 10. Nxf5 {[%clk 0:02:48.5]} 10... exf5 {[%clk 0:02:40.2]} 11. cxd5
{[%clk 0:02:48.7]} 11... cxd5 {[%clk 0:02:40.1]} 12. Bf3 {[%clk 0:02:48.5]}
12... Qe6 {[%clk 0:02:27.7]} 13. Ne2 {[%clk 0:02:38.7]} 13... g6 {[%clk
0:02:25.8]} 14. Nf4 {[%clk 0:02:37.6]} 14... Qd6 {[%clk 0:02:18.7]} 15. Rc1
{[%clk 0:02:14.8]} 15... Ne5 {[%clk 0:02:12.5]} 16. Bxe5 {[%clk 0:01:57.6]}
16... Qxe5 {[%clk 0:02:11.5]} 17. Rc6 {[%clk 0:01:51]} 17... Bd6 {[%clk
0:01:53.4]} 18. d4 {[%clk 0:01:45.9]} 18... Qe7 {[%clk 0:01:50.7]} 19. Nxd5
{[%clk 0:01:46.3]} 19... Nxd5 {[%clk 0:01:49.2]} 20. Bxd5 {[%clk 0:01:47.2]}
20... O-O {[%clk 0:01:44.1]} 21. Qc2 {[%clk 0:01:46.9]} 21... Rfd8 {[%clk
0:01:25.5]} 22. Rxd6 {[%clk 0:01:42]} 22... Qxd6 {[%clk 0:01:24.5]} 23. Bxa8
{[%clk 0:01:41.5]} 23... Rxa8 {[%clk 0:01:25.4]} 24. Rc1 {[%clk 0:01:41.5]}
24... f4 {[%clk 0:01:05.3]} 25. Qc6 {[%clk 0:01:31.7]} 25... Qd8 {[%clk
0:00:55.2]} 26. exf4 {[%clk 0:01:29.1]} 26... Kg7 {[%clk 0:00:27.8]} 27. g3
{[%clk 0:01:27.4]} 27... Ra7 {[%clk 0:00:27.8]} 28. d5 {[%clk 0:01:25.9]} 28...
Rd7 {[%clk 0:00:27.8]} 29. Rd1 {[%clk 0:01:23.3]} 29... Rd6 {[%clk 0:00:27.9]}
30. Qc3+ {[%clk 0:01:22.9]} 30... Kg8 {[%clk 0:00:26]} 31. h4 {[%clk 0:01:22]}
31... h5 {[%clk 0:00:23.7]} 32. Qe5 {[%clk 0:01:20.7]} 32... Qd7 {[%clk
0:00:23.1]} 33. Rd3 {[%clk 0:01:16.6]} 33... Kh7 {[%clk 0:00:21.9]} 34. Kg2
{[%clk 0:01:11.1]} 34... a5 {[%clk 0:00:21.3]} 35. Qd4 {[%clk 0:01:09.9]} 35...
a4 {[%clk 0:00:19.7]} 36. bxa4 {[%clk 0:01:09.3]} 36... bxa4 {[%clk 0:00:20.6]}
37. Ra3 {[%clk 0:01:08.1]} 37... Rxd5 {[%clk 0:00:18.8]} 38. Qxa4 {[%clk
0:01:08.1]} 38... Qb7 {[%clk 0:00:13.5]} 39. Qe4 {[%clk 0:01:07.1]} 39... Qd7
{[%clk 0:00:10.8]} 40. Ra7 {[%clk 0:01:05.4]} 40... Qxa7 {[%clk 0:00:07.3]} 41.
Qxd5 {[%clk 0:01:05.8]} 41... Kg8 {[%clk 0:00:07.1]} 42. f5 {[%clk 0:01:05.4]}
42... gxf5 {[%clk 0:00:05.4]} 43. Qxf5 {[%clk 0:01:06.3]} 43... Qxa2 {[%clk
0:00:05.5]} 44. Qg5+ {[%clk 0:01:06.7]} 44... Kf8 {[%clk 0:00:05.3]} 45. Qxh5
{[%clk 0:01:07.6]} 45... Qa8+ {[%clk 0:00:05.4]} 46. Qf3 {[%clk 0:01:07.7]}
46... Qa4 {[%clk 0:00:05.7]} 47. h5 {[%clk 0:01:07.5]} 47... Qb4 {[%clk
0:00:05.9]} 48. Qf4 {[%clk 0:01:04.4]} 48... Qb1 {[%clk 0:00:05.8]} 49. h6
{[%clk 0:01:02.9]} 49... Qb7+ {[%clk 0:00:05.1]} 50. Kh2 {[%clk 0:01:02]} 50...
Qb1 {[%clk 0:00:06]} 51. Qg5 {[%clk 0:00:59.3]} 51... Qc2 {[%clk 0:00:04.8]} 52.
Qd8# {[%clk 0:00:59.1]} 1-0

[Event "*** Titled Tuesday Blitz"]
[Site "Chess.com"]
[Date "2020.03.03"]
[Round "1"]
[White "PawnEatingZombie"]
[Black "dusanacns"]
[Result "0-1"]
[WhiteElo "2218"]
[BlackElo "2611"]
[TimeControl "180+1"]
[EndTime "13:07:25 PST"]
[Termination "dusanacns won on time"]

1. d4 {[%clk 0:03:00.9]} 1... Nf6 {[%clk 0:02:58.6]} 2. c4 {[%clk 0:03:00.1]}
2... g6 {[%clk 0:02:59.2]} 3. Nc3 {[%clk 0:03:00.5]} 3... Bg7 {[%clk 0:02:59.7]}
4. e4 {[%clk 0:03:00.5]} 4... d6 {[%clk 0:03:00.1]} 5. Be2 {[%clk 0:03:01.1]}
5... O-O {[%clk 0:03:00.4]} 6. Be3 {[%clk 0:03:01.6]} 6... Na6 {[%clk
0:02:59.5]} 7. Nf3 {[%clk 0:03:00.8]} 7... Ng4 {[%clk 0:02:59.2]} 8. Bg5 {[%clk
0:03:00]} 8... f6 {[%clk 0:02:57.7]} 9. Bc1 {[%clk 0:02:59.8]} 9... e5 {[%clk
0:02:52.2]} 10. O-O {[%clk 0:02:58.9]} 10... Nh6 {[%clk 0:02:45.9]} 11. c5
{[%clk 0:02:40]} 11... exd4 {[%clk 0:02:33.6]} 12. Bxa6 {[%clk 0:02:39.8]} 12...
dxc3 {[%clk 0:02:20.7]} 13. Bc4+ {[%clk 0:02:38.4]} 13... Kh8 {[%clk 0:02:16.4]}
14. cxd6 {[%clk 0:02:26.3]} 14... cxd6 {[%clk 0:02:10.2]} 15. bxc3 {[%clk
0:02:20.3]} 15... Qc7 {[%clk 0:02:06.4]} 16. Bd5 {[%clk 0:02:04.1]} 16... Nf7
{[%clk 0:01:35]} 17. Be3 {[%clk 0:01:49.8]} 17... Ne5 {[%clk 0:01:32.8]} 18. Nd4
{[%clk 0:01:41.6]} 18... a6 {[%clk 0:01:27]} 19. Qe2 {[%clk 0:01:33.8]} 19...
Rb8 {[%clk 0:01:07.2]} 20. Rab1 {[%clk 0:01:33.6]} 20... Bd7 {[%clk 0:01:02]}
21. c4 {[%clk 0:01:29.6]} 21... Rfe8 {[%clk 0:00:58.7]} 22. Rfc1 {[%clk
0:01:19]} 22... Ng4 {[%clk 0:00:58]} 23. Bf4 {[%clk 0:01:08.1]} 23... f5 {[%clk
0:00:49.8]} 24. Nf3 {[%clk 0:00:39]} 24... Nf6 {[%clk 0:00:41.9]} 25. Ng5 {[%clk
0:00:33.9]} 25... h6 {[%clk 0:00:38.1]} 26. Bxd6 {[%clk 0:00:28.4]} 26... Qa5
{[%clk 0:00:31.2]} 27. Nf7+ {[%clk 0:00:26.2]} 27... Kh7 {[%clk 0:00:30.9]} 28.
e5 {[%clk 0:00:25.2]} 28... Nxd5 {[%clk 0:00:26.8]} 29. cxd5 {[%clk 0:00:26.1]}
29... Qxd5 {[%clk 0:00:18.8]} 30. Bxb8 {[%clk 0:00:18.1]} 30... Qxf7 {[%clk
0:00:14.8]} 31. Bd6 {[%clk 0:00:14.1]} 31... Qe6 {[%clk 0:00:14.6]} 32. Rc7
{[%clk 0:00:12.7]} 32... Bc6 {[%clk 0:00:13.3]} 33. Qd3 {[%clk 0:00:04.7]} 33...
Kh8 {[%clk 0:00:11.1]} 34. Qd2 {[%clk 0:00:02.7]} 34... Kg8 {[%clk 0:00:09]} 35.
f3 {[%clk 0:00:02.4]} 35... g5 {[%clk 0:00:07.4]} 36. Rxc6 {[%clk 0:00:01.2]}
36... bxc6 {[%clk 0:00:07.2]} 37. Rb7 {[%clk 0:00:01.5]} 37... Qc8 {[%clk
0:00:04.8]} 0-1

[Event "*** Titled Tuesday Blitz"]
[Site "Chess.com"]
[Date "2020.03.03"]
[Round "1"]
[White "GMWSO"]
[Black "Kislov_Oleg"]
[Result "1-0"]
[WhiteElo "3115"]
[BlackElo "2531"]
[TimeControl "180+1"]
[EndTime "13:07:31 PST"]
[Termination "GMWSO won by resignation"]

1. e4 {[%clk 0:02:51.7]} 1... e6 {[%clk 0:02:59]} 2. d4 {[%clk 0:02:51.4]} 2...
d5 {[%clk 0:02:58.7]} 3. Nc3 {[%clk 0:02:52.1]} 3... Nf6 {[%clk 0:02:57]} 4. e5
{[%clk 0:02:52.2]} 4... Nfd7 {[%clk 0:02:56.9]} 5. f4 {[%clk 0:02:52.7]} 5... c5
{[%clk 0:02:57]} 6. Nf3 {[%clk 0:02:53.2]} 6... Nc6 {[%clk 0:02:57.5]} 7. Be3
{[%clk 0:02:53.7]} 7... cxd4 {[%clk 0:02:53.5]} 8. Nxd4 {[%clk 0:02:54.6]} 8...
Bc5 {[%clk 0:02:53.2]} 9. Qd2 {[%clk 0:02:54.9]} 9... Nxd4 {[%clk 0:02:51.4]}
10. Bxd4 {[%clk 0:02:54.8]} 10... Bxd4 {[%clk 0:02:52.1]} 11. Qxd4 {[%clk
0:02:55.6]} 11... Qb6 {[%clk 0:02:52.6]} 12. Qxb6 {[%clk 0:02:54.8]} 12... Nxb6
{[%clk 0:02:51.9]} 13. a4 {[%clk 0:02:53]} 13... Bd7 {[%clk 0:02:46.2]} 14. a5
{[%clk 0:02:53.2]} 14... Nc4 {[%clk 0:02:34.1]} 15. Bxc4 {[%clk 0:02:33.6]}
15... dxc4 {[%clk 0:02:34.1]} 16. O-O-O {[%clk 0:02:34.5]} 16... Bc6 {[%clk
0:02:27.9]} 17. Rd4 {[%clk 0:02:27.4]} 17... b5 {[%clk 0:02:14.1]} 18. Rd6
{[%clk 0:02:21.7]} 18... Rc8 {[%clk 0:02:10]} 19. Rhd1 {[%clk 0:02:14.1]} 19...
Ke7 {[%clk 0:01:53.9]} 20. Na2 {[%clk 0:02:13]} 20... Rhd8 {[%clk 0:01:48]} 21.
g3 {[%clk 0:02:11.5]} 21... Bd5 {[%clk 0:01:43.3]} 22. Rxd8 {[%clk 0:02:01.5]}
22... Rxd8 {[%clk 0:01:41.9]} 23. Nb4 {[%clk 0:02:02.4]} 23... Bb7 {[%clk
0:01:35.3]} 24. Rxd8 {[%clk 0:02:01.6]} 24... Kxd8 {[%clk 0:01:35.4]} 25. Kd2
{[%clk 0:02:02.5]} 25... Kc7 {[%clk 0:01:18]} 26. Kc3 {[%clk 0:02:02.2]} 26...
a6 {[%clk 0:01:16.6]} 27. Kd4 {[%clk 0:01:58.9]} 27... Bc8 {[%clk 0:01:04.5]}
28. Kc5 {[%clk 0:01:58.7]} 28... Bb7 {[%clk 0:01:04.8]} 29. g4 {[%clk
0:01:51.5]} 29... h6 {[%clk 0:00:55.9]} 30. h4 {[%clk 0:01:50.2]} 30... Bc8
{[%clk 0:00:37.8]} 31. h5 {[%clk 0:01:13.6]} 31... Bb7 {[%clk 0:00:36.7]} 32. g5
{[%clk 0:01:14.1]} 32... Bf3 {[%clk 0:00:22.9]} 33. gxh6 {[%clk 0:01:09.9]}
33... gxh6 {[%clk 0:00:22.5]} 34. Nxa6+ {[%clk 0:01:10.7]} 34... Kb7 {[%clk
0:00:22]} 35. Kxb5 {[%clk 0:01:05.7]} 35... Bxh5 {[%clk 0:00:15.8]} 36. Nc5+
{[%clk 0:01:04.9]} 36... Ka7 {[%clk 0:00:14.7]} 37. Kxc4 {[%clk 0:01:03.9]}
37... Bd1 {[%clk 0:00:10.6]} 38. b4 {[%clk 0:00:49.9]} 38... h5 {[%clk
0:00:10.7]} 39. b5 {[%clk 0:00:50.1]} 39... Be2+ {[%clk 0:00:09.3]} 40. Kb4
{[%clk 0:00:37.4]} 40... h4 {[%clk 0:00:09.2]} 41. Ne4 {[%clk 0:00:34.9]} 41...
h3 {[%clk 0:00:08.5]} 42. Nf2 {[%clk 0:00:34.1]} 42... h2 {[%clk 0:00:08.5]} 43.
c4 {[%clk 0:00:34.7]} 43... Bf3 {[%clk 0:00:08.7]} 44. c5 {[%clk 0:00:34.3]}
44... h1=Q {[%clk 0:00:08.7]} 45. Nxh1 {[%clk 0:00:34]} 45... Bxh1 {[%clk
0:00:09.6]} 46. c6 {[%clk 0:00:34.3]} 46... Bd5 {[%clk 0:00:09.4]} 47. Kc5
{[%clk 0:00:34.4]} 47... Be4 {[%clk 0:00:09.4]} 48. Kd6 {[%clk 0:00:34.2]} 48...
Bd5 {[%clk 0:00:08.2]} 49. c7 {[%clk 0:00:33.5]} 49... Kb7 {[%clk 0:00:05.4]}
50. a6+ {[%clk 0:00:31.7]} 50... Kc8 {[%clk 0:00:05.4]} 51. b6 {[%clk 0:00:32]}
51... Ba8 {[%clk 0:00:05.1]} 52. b7+ {[%clk 0:00:29.6]} 52... Bxb7 {[%clk
0:00:06]} 53. axb7+ {[%clk 0:00:30.4]} 53... Kxb7 {[%clk 0:00:06]} 54. Kd7
{[%clk 0:00:31.3]} 1-0

[Event "*** Titled Tuesday Blitz"]
[Site "Chess.com"]
[Date "2020.03.03"]
[Round "1"]
[White "DACF2905"]
[Black "Karacsonyi_Gellert"]
[Result "0-1"]
[WhiteElo "2204"]
[BlackElo "2607"]
[TimeControl "180+1"]
[EndTime "13:07:36 PST"]
[Termination "Karacsonyi_Gellert won by checkmate"]

1. c4 {[%clk 0:02:59.9]} 1... Nf6 {[%clk 0:02:59.4]} 2. Nc3 {[%clk 0:02:48.8]}
2... e6 {[%clk 0:02:58.2]} 3. g3 {[%clk 0:02:46.5]} 3... d5 {[%clk 0:02:57.9]}
4. cxd5 {[%clk 0:02:45.2]} 4... exd5 {[%clk 0:02:56.2]} 5. Bg2 {[%clk
0:02:46.1]} 5... c6 {[%clk 0:02:54.1]} 6. Nf3 {[%clk 0:02:41.1]} 6... Be7 {[%clk
0:02:53.2]} 7. O-O {[%clk 0:02:37.6]} 7... O-O {[%clk 0:02:54.1]} 8. d4 {[%clk
0:02:36.4]} 8... Be6 {[%clk 0:02:52.9]} 9. h3 {[%clk 0:02:26.4]} 9... Nbd7
{[%clk 0:02:52.2]} 10. g4 {[%clk 0:02:21.8]} 10... Rc8 {[%clk 0:02:51.4]} 11.
Bf4 {[%clk 0:02:20]} 11... Re8 {[%clk 0:02:51.5]} 12. e3 {[%clk 0:02:19.2]}
12... Nf8 {[%clk 0:02:51.5]} 13. Rc1 {[%clk 0:02:16.4]} 13... Bd6 {[%clk
0:02:51.4]} 14. Bxd6 {[%clk 0:02:15.5]} 14... Qxd6 {[%clk 0:02:52.3]} 15. Ne5
{[%clk 0:02:15.5]} 15... Ng6 {[%clk 0:02:48.8]} 16. f4 {[%clk 0:02:14.4]} 16...
Bd7 {[%clk 0:02:36.3]} 17. a3 {[%clk 0:02:10.2]} 17... c5 {[%clk 0:02:14.5]} 18.
dxc5 {[%clk 0:01:57.2]} 18... Rxc5 {[%clk 0:02:10.1]} 19. Nxg6 {[%clk
0:01:46.1]} 19... hxg6 {[%clk 0:02:08.1]} 20. Qd4 {[%clk 0:01:45.8]} 20... Rc4
{[%clk 0:02:06.2]} 21. Qd3 {[%clk 0:01:40.6]} 21... Qc5 {[%clk 0:01:57.4]} 22.
Rfe1 {[%clk 0:01:31.3]} 22... Bc6 {[%clk 0:01:34]} 23. Kh2 {[%clk 0:01:22.2]}
23... Qb6 {[%clk 0:01:14.7]} 24. b4 {[%clk 0:01:17.9]} 24... a6 {[%clk
0:01:04.1]} 25. Nxd5 {[%clk 0:00:36.9]} 25... Rxc1 {[%clk 0:00:46.2]} 26. Nxf6+
{[%clk 0:00:35.4]} 26... gxf6 {[%clk 0:00:45.2]} 27. Rxc1 {[%clk 0:00:34.8]}
27... Bxg2 {[%clk 0:00:44.1]} 28. Kxg2 {[%clk 0:00:34.5]} 28... Rxe3 {[%clk
0:00:44.7]} 29. Qc4 {[%clk 0:00:29.1]} 29... Rxa3 {[%clk 0:00:36]} 30. Rc3
{[%clk 0:00:25.4]} 30... Rxc3 {[%clk 0:00:33.4]} 31. Qxc3 {[%clk 0:00:25.5]}
31... Kg7 {[%clk 0:00:20.1]} 32. Kg3 {[%clk 0:00:25.1]} 32... Qg1+ {[%clk
0:00:17.2]} 33. Kf3 {[%clk 0:00:21.3]} 33... Qf1+ {[%clk 0:00:17.3]} 34. Kg3
{[%clk 0:00:20.9]} 34... Qg1+ {[%clk 0:00:10.7]} 35. Kf3 {[%clk 0:00:20.4]}
35... Qd1+ {[%clk 0:00:10.8]} 36. Kg3 {[%clk 0:00:19.5]} 36... Qd6 {[%clk
0:00:11.7]} 37. g5 {[%clk 0:00:19]} 37... b6 {[%clk 0:00:11.8]} 38. h4 {[%clk
0:00:16]} 38... a5 {[%clk 0:00:10.6]} 39. bxa5 {[%clk 0:00:16]} 39... bxa5
{[%clk 0:00:10.8]} 40. Qxa5 {[%clk 0:00:16.9]} 40... Qd3+ {[%clk 0:00:10.8]} 41.
Kg2 {[%clk 0:00:16.1]} 41... Qe2+ {[%clk 0:00:11]} 42. Kg3 {[%clk 0:00:16.3]}
42... Qe3+ {[%clk 0:00:11.5]} 43. Kg4 {[%clk 0:00:16.1]} 43... f5+ {[%clk
0:00:11.3]} 44. Qxf5 {[%clk 0:00:11.6]} 44... gxf5+ {[%clk 0:00:12.2]} 45. Kxf5
{[%clk 0:00:11.9]} 45... Qe6# {[%clk 0:00:11.2]} 0-1

[Event "*** Titled Tuesday Blitz"]
[Site "Chess.com"]
[Date "2020.03.03"]
[Round "1"]
[White "Rsnr"]
[Black "ChadBiryani"]
[Result "1-0"]
[WhiteElo "2826"]
[BlackElo "2435"]
[TimeControl "180+1"]
[EndTime "13:07:37 PST"]
[Termination "Rsnr won by resignation"]

1. d4 {[%clk 0:03:00.1]} 1... f5 {[%clk 0:02:56.2]} 2. c4 {[%clk 0:03:00.2]}
2... e6 {[%clk 0:02:55.3]} 3. Nc3 {[%clk 0:02:59.2]} 3... Nf6 {[%clk 0:02:53.7]}
4. Qc2 {[%clk 0:02:59.6]} 4... d6 {[%clk 0:02:48.7]} 5. e3 {[%clk 0:02:59.7]}
5... Be7 {[%clk 0:02:48.3]} 6. Bd3 {[%clk 0:02:59.8]} 6... O-O {[%clk
0:02:47.2]} 7. Nge2 {[%clk 0:03:00.3]} 7... Qe8 {[%clk 0:02:42.2]} 8. O-O {[%clk
0:03:00.1]} 8... a5 {[%clk 0:02:41.3]} 9. Bd2 {[%clk 0:02:48.1]} 9... Nc6 {[%clk
0:02:41]} 10. a3 {[%clk 0:02:48.1]} 10... Nd8 {[%clk 0:02:38.5]} 11. b4 {[%clk
0:02:46.9]} 11... Qh5 {[%clk 0:02:36.6]} 12. f3 {[%clk 0:02:46.9]} 12... e5
{[%clk 0:02:32.3]} 13. Nb5 {[%clk 0:02:35.4]} 13... c6 {[%clk 0:02:15.1]} 14.
Nbc3 {[%clk 0:02:19.8]} 14... g6 {[%clk 0:02:08.5]} 15. d5 {[%clk 0:02:05.3]}
15... Nf7 {[%clk 0:01:52.9]} 16. bxa5 {[%clk 0:01:42.2]} 16... cxd5 {[%clk
0:01:30.6]} 17. Nxd5 {[%clk 0:01:36.1]} 17... Nxd5 {[%clk 0:01:25.7]} 18. cxd5
{[%clk 0:01:37]} 18... e4 {[%clk 0:01:26.2]} 19. fxe4 {[%clk 0:01:28.7]} 19...
fxe4 {[%clk 0:01:24.5]} 20. Bb5 {[%clk 0:01:28.9]} 20... Bf5 {[%clk 0:01:18.1]}
21. Ng3 {[%clk 0:01:29]} 21... Qg4 {[%clk 0:01:00.6]} 22. Be2 {[%clk 0:01:15.4]}
22... Qg5 {[%clk 0:00:58.8]} 23. Nxe4 {[%clk 0:01:15.6]} 23... Qh4 {[%clk
0:00:58.7]} 24. Rf4 {[%clk 0:01:15.4]} 24... Qh6 {[%clk 0:00:55.9]} 25. Qb2
{[%clk 0:01:08.2]} 25... Ne5 {[%clk 0:00:53.8]} 26. Raf1 {[%clk 0:00:45]} 26...
Bxe4 {[%clk 0:00:35.2]} 27. Rxe4 {[%clk 0:00:45.9]} 27... Bg5 {[%clk 0:00:33.1]}
28. Qb4 {[%clk 0:00:29.8]} 28... Rxf1+ {[%clk 0:00:27]} 29. Bxf1 {[%clk
0:00:30.7]} 29... Qf8 {[%clk 0:00:23.2]} 30. Qxb7 {[%clk 0:00:24.4]} 30... Rb8
{[%clk 0:00:23.7]} 31. Qa6 {[%clk 0:00:21.3]} 31... Rb1 {[%clk 0:00:21.8]} 32.
Qe2 {[%clk 0:00:15.6]} 32... Qf5 {[%clk 0:00:13.1]} 33. Rb4 {[%clk 0:00:15.9]}
33... Ra1 {[%clk 0:00:11.7]} 34. a4 {[%clk 0:00:12.9]} 34... Nd3 {[%clk
0:00:09.3]} 35. e4 {[%clk 0:00:06.6]} 35... Qxf1+ {[%clk 0:00:07.7]} 36. Qxf1
{[%clk 0:00:07.1]} 36... Rxf1+ {[%clk 0:00:08.1]} 37. Kxf1 {[%clk 0:00:08]}
37... Nxb4 {[%clk 0:00:01.7]} 38. Bxb4 {[%clk 0:00:08.9]} 38... Be3 {[%clk
0:00:02.1]} 39. Bxd6 {[%clk 0:00:09]} 39... Kf7 {[%clk 0:00:02.5]} 40. Bc7
{[%clk 0:00:09.1]} 40... Ke7 {[%clk 0:00:02.6]} 41. Bb6 {[%clk 0:00:09.7]} 41...
Bf4 {[%clk 0:00:03.1]} 42. a6 {[%clk 0:00:10.1]} 1-0

[Event "*** Titled Tuesday Blitz"]
[Site "Chess.com"]
[Date "2020.03.03"]
[Round "1"]
[White "Perecke"]
[Black "Snegokhod"]
[Result "1-0"]
[WhiteElo "2292"]
[BlackElo "2614"]
[TimeControl "180+1"]
[EndTime "13:07:37 PST"]
[Termination "Perecke won by checkmate"]

1. e4 {[%clk 0:03:00.6]} 1... c5 {[%clk 0:02:59.1]} 2. Nf3 {[%clk 0:03:00.1]}
2... e6 {[%clk 0:02:57.9]} 3. d4 {[%clk 0:03:00.4]} 3... cxd4 {[%clk 0:02:57.5]}
4. Nxd4 {[%clk 0:03:01.3]} 4... a6 {[%clk 0:02:57.2]} 5. c4 {[%clk 0:03:01.5]}
5... Qc7 {[%clk 0:02:55.4]} 6. Be2 {[%clk 0:02:59.2]} 6... Nf6 {[%clk
0:02:54.7]} 7. Nc3 {[%clk 0:02:58.6]} 7... Bb4 {[%clk 0:02:50.2]} 8. Qc2 {[%clk
0:02:54.8]} 8... Nc6 {[%clk 0:02:47.4]} 9. Be3 {[%clk 0:02:46.1]} 9... Qe5
{[%clk 0:02:45.2]} 10. Nxc6 {[%clk 0:02:32.1]} 10... dxc6 {[%clk 0:02:33.4]} 11.
f3 {[%clk 0:02:28.1]} 11... Bxc3+ {[%clk 0:02:24.5]} 12. bxc3 {[%clk 0:02:23.9]}
12... c5 {[%clk 0:02:25.4]} 13. O-O {[%clk 0:02:19.7]} 13... b6 {[%clk
0:02:26.3]} 14. Qa4+ {[%clk 0:02:05.4]} 14... Bd7 {[%clk 0:02:19.3]} 15. Qb3
{[%clk 0:02:05.4]} 15... Qc7 {[%clk 0:02:18.9]} 16. Rab1 {[%clk 0:02:00.3]}
16... Rb8 {[%clk 0:02:18.5]} 17. Qa3 {[%clk 0:01:57.1]} 17... a5 {[%clk
0:01:58]} 18. Bg5 {[%clk 0:01:38.4]} 18... O-O {[%clk 0:01:56.2]} 19. Bxf6
{[%clk 0:01:36.6]} 19... gxf6 {[%clk 0:01:55.9]} 20. f4 {[%clk 0:01:37.2]} 20...
Bc6 {[%clk 0:01:54.3]} 21. Bd3 {[%clk 0:01:20.1]} 21... Rfd8 {[%clk 0:01:53.2]}
22. Rbd1 {[%clk 0:01:20]} 22... Rxd3 {[%clk 0:01:50.8]} 23. Rxd3 {[%clk
0:01:19]} 23... Bxe4 {[%clk 0:01:51.3]} 24. Rg3+ {[%clk 0:01:18.4]} 24... Kf8
{[%clk 0:01:50.8]} 25. Qc1 {[%clk 0:01:11.4]} 25... Rd8 {[%clk 0:01:48.2]} 26.
Qe3 {[%clk 0:01:11.1]} 26... f5 {[%clk 0:01:47]} 27. Rg5 {[%clk 0:01:00.4]}
27... Rd3 {[%clk 0:01:43.6]} 28. Qf2 {[%clk 0:00:57.9]} 28... Qd6 {[%clk
0:01:30.9]} 29. Qh4 {[%clk 0:00:52.4]} 29... Rd2 {[%clk 0:01:26.4]} 30. Qh6+
{[%clk 0:00:43.2]} 30... Ke7 {[%clk 0:01:25.9]} 31. Rg8 {[%clk 0:00:38.7]} 31...
Kd7 {[%clk 0:01:15.6]} 32. Qxh7 {[%clk 0:00:35.1]} 32... Qe7 {[%clk 0:01:10.1]}
33. Qh8 {[%clk 0:00:21.3]} 33... Bb7 {[%clk 0:00:57.6]} 34. Qe5 {[%clk
0:00:20.6]} 34... Qh4 {[%clk 0:00:47.1]} 35. Qb8 {[%clk 0:00:16.5]} 35... Bxg2
{[%clk 0:00:27.9]} 36. Qe8+ {[%clk 0:00:05.2]} 36... Kc7 {[%clk 0:00:24.5]} 37.
Qc8+ {[%clk 0:00:05.1]} 37... Kd6 {[%clk 0:00:21.9]} 38. Qd8+ {[%clk 0:00:04.9]}
38... Qxd8 {[%clk 0:00:20.1]} 39. Rxd8+ {[%clk 0:00:05.8]} 39... Ke7 {[%clk
0:00:20.7]} 40. Rxd2 {[%clk 0:00:06.1]} 40... Be4 {[%clk 0:00:21.3]} 41. Re1
{[%clk 0:00:06]} 41... f6 {[%clk 0:00:19.7]} 42. Rb1 {[%clk 0:00:05.9]} 42... e5
{[%clk 0:00:19.5]} 43. Rxb6 {[%clk 0:00:04.5]} 43... exf4 {[%clk 0:00:19.8]} 44.
Kf2 {[%clk 0:00:03.8]} 44... Kf7 {[%clk 0:00:18.4]} 45. Rdd6 {[%clk 0:00:03.7]}
45... Kg6 {[%clk 0:00:18.3]} 46. Rxf6+ {[%clk 0:00:04.6]} 46... Kg5 {[%clk
0:00:19.2]} 47. Rg6+ {[%clk 0:00:03.8]} 47... Kh4 {[%clk 0:00:19.4]} 48. Rh6+
{[%clk 0:00:04.4]} 48... Kg5 {[%clk 0:00:19.6]} 49. Rbg6# {[%clk 0:00:05.3]} 1-0